{"text_format":"3","workbook":"xlsx","n_sheets":1,"sheets":["教委2020年度招聘 "],"not_rendered":{"defined_names":3},"read":"whole","date_system":"1900"}

{"sheet":"教委2020年度招聘 ","index":0,"n_rows":86,"n_cols":17,"rows_kept":86,"merged":[[0,0,0,16],[1,0,3,0],[1,1,3,1],[1,2,3,2],[1,3,3,3],[1,4,3,4],[1,5,3,5],[1,6,3,6],[1,7,1,14],[1,15,3,15],[1,16,3,16],[2,7,2,9],[2,10,3,10],[2,11,2,12],[2,14,3,14]]}
["2020年门头沟区教育系统事业单位招聘岗位及条件"]
["序号","单位名称","经费形式","拟招考岗位","岗位类别","岗位等级","人数","所需资格条件",{"$nulls":7},"招聘单位地址及联系电话、邮箱","备注"]
[{"$nulls":7},"学历要求",null,null,"所学专业",{"$nulls":3},"生源"]
[{"$nulls":7},"研究生及以上","本科及以上","大专及以上",null,"30岁及以下","35岁及以下","40岁及以下"]
[1,"北京市大峪中学","全额事业","高中语文教师","专业技术","专技十三级",1,1,null,null,"中国语言文学类、学科教学（语文）专业、汉语国际教育专业",null,1,null,"生源不限","门头沟区滨河德露苑18号   18513268007  李老师  mtgjwzzrsk@bjmtg.gov.cn","面向2018-2020年应届毕业生"]
[2,"北京市大峪中学","全额事业","初中音乐教师","专业技术","专技十三级",1,1,null,null,"音乐学专业、音乐与舞蹈学（音乐）专业、学科教学（音乐）专业、艺术硕士（音乐）专业    ",null,1,null,"生源不限","门头沟区滨河德露苑18号   18513268007  李老师  mtgjwzzrsk@bjmtg.gov.cn","面向2018-2020年应届毕业生"]
[3,"北京市大峪中学","全额事业","初中历史教师","专业技术","专技十三级",{"$f":"H7+I7+J7","v":1},null,1,null,"历史学类、学科教学（历史）专业       ",1,null,null,"北京生源","门头沟区滨河德露苑18号   18513268007  李老师  mtgjwzzrsk@bjmtg.gov.cn","面向2018-2020年应届毕业生"]
[4,"北京市大峪中学","全额事业","初中数学教师（定向）","专业技术","专技十三级",{"$f":"H8+I8+J8","v":1},null,1,null,"数学与应用数学专业",1,null,null,"北京生源","门头沟区滨河德露苑18号   18513268007  李老师  mtgjwzzrsk@bjmtg.gov.cn","本岗位仅面向首都师范大学为门头沟区定向培养的2020年应届师范生"]
[5,"北京市第八中学永定实验学校","全额事业","初中语文教师","专业技术","专技十三级",{"$f":"H9+I9+J9","v":1},1,null,null,"中国语言文学类、学科教学（语文）专业、汉语国际教育专业",null,1,null,"生源不限","门头沟区何各庄西街5号院 15110115769 李老师mtgjwzzrsk@bjmtg.gov.cn  ","面向2018-2020年应届毕业生"]
[6,"北京市第八中学永定实验学校","全额事业","初中物理教师","专业技术","专技十三级",{"$f":"H10+I10+J10","v":1},1,null,null,"物理学类、学科教学（物理）专业    ",null,1,null,"生源不限","门头沟区何各庄西街5号院 15110115769 李老师mtgjwzzrsk@bjmtg.gov.cn  ","面向2018-2020年应届毕业生"]
[7,"首都师范大学附属中学永定分校","全额事业","高中生物教师","专业技术","专技十三级",2,2,null,null,"生物学类、学科教学（生物）专业       ",null,2,null,"生源不限","门头沟区石龙北路32号    18513267708  付老师mtgjwzzrsk@bjmtg.gov.cn","面向2018-2020年应届毕业生"]
[8,"首都师范大学附属中学永定分校","全额事业","高中地理教师","专业技术","专技十三级",1,1,null,null,"地理学类、学科教学（地理）专业、地图制图学与地理信息工程专业、第四纪地质学专业       ",null,1,null,"生源不限","门头沟区石龙北路32号    18513267708  付老师mtgjwzzrsk@bjmtg.gov.cn","面向2018-2020年应届毕业生"]
[9,"首都师范大学附属中学永定分校","全额事业","高中历史教师","专业技术","专技十三级",{"$f":"H13+I13+J13","v":1},1,null,null,"历史学类、学科教学（历史）专业       ",null,1,null,"生源不限","门头沟区石龙北路32号    18513267708  付老师mtgjwzzrsk@bjmtg.gov.cn","面向2018-2020年应届毕业生"]
[10,"首都师范大学附属中学永定分校","全额事业","初中体育教师","专业技术","专技十三级",{"$f":"H14+I14+J14","v":1},null,1,null,"体育学类、 学科教学（体育）专业                ",1,null,null,"北京生源","门头沟区石龙北路32号    18513267708  付老师mtgjwzzrsk@bjmtg.gov.cn","面向2018-2020年应届毕业生"]
[11,"北京市第八中学京西校区","全额事业","高中语文教师","专业技术","专技十三级",1,1,null,null,"中国语言文学类、学科教学（语文）专业、汉语国际教育专业",null,1,null,"生源不限","门头沟区永定镇东辛称地块18310838507  于老师  mtgjwzzrsk@bjmtg.gov.cn    ","面向2018-2020年应届毕业生"]
[12,"北京市第八中学京西校区","全额事业","高中信息教师","专业技术","专技十三级",{"$f":"H16+I16+J16","v":1},1,null,null,"电子信息类、计算机科学与技术类",null,1,null,"生源不限","门头沟区永定镇东辛称地块18310838507  于老师  mtgjwzzrsk@bjmtg.gov.cn    ","面向2018-2020年应届毕业生"]
[13,"北京市第八中学京西校区","全额事业","高中体育教师","专业技术","专技十三级",1,1,null,null,"体育学类 、学科教学（体育）专业",null,1,null,"生源不限","门头沟区永定镇东辛称地块18310838507  于老师  mtgjwzzrsk@bjmtg.gov.cn    ","面向2018-2020年应届毕业生"]
[14,"北京市第八中学京西校区","全额事业","初中政治教师","专业技术","专技十三级",{"$f":"H18+I18+J18","v":1},null,1,null,"政治学类、马克思主义理论类、学科教学（思政）专业      ",1,null,null,"北京生源","门头沟区永定镇东辛称地块18310838507  于老师  mtgjwzzrsk@bjmtg.gov.cn    ","面向2018-2020年应届毕业生"]
[15,"北京市第八中学京西校区","全额事业","初中物理教师","专业技术","专技十三级",{"$f":"H19+I19+J19","v":1},null,1,null,"物理学类、学科教学（物理）专业    ",1,null,null,"北京生源","门头沟区永定镇东辛称地块18310838507  于老师  mtgjwzzrsk@bjmtg.gov.cn    ","面向2018-2020年应届毕业生"]
[16,"北京市第八中学京西校区","全额事业","初中化学教师","专业技术","专技十三级",1,null,1,null,"化学类、学科教学（化学）专业  ",1,null,null,"北京生源","门头沟区永定镇东辛称地块18310838507  于老师  mtgjwzzrsk@bjmtg.gov.cn    ","面向2018-2020年应届毕业生"]
[17,"北京市第八中学京西校区","全额事业","初中地理教师","专业技术","专技十三级",1,null,1,null,"地理科学类、学科教学（地理）专业、地图制图学与地理信息工程专业、第四纪地质学专业       ",1,null,null,"北京生源","门头沟区永定镇东辛称地块18310838507  于老师  mtgjwzzrsk@bjmtg.gov.cn    ","面向2018-2020年应届毕业生"]
[18,"北京市大峪中学分校","全额事业","初中政治教师","专业技术","专技十三级",{"$f":"H22+I22+J22","v":1},1,null,null,"政治学类、马克思主义理论类、学科教学（思政）专业      ",null,1,null,"生源不限","门头沟区石门营石园北路18513267008 李老师 mtgjwzzrsk1@bjmtg.gov.cn\n","面向2018-2020年应届毕业生"]
[19,"北京市大峪中学分校","全额事业","初中历史教师","专业技术","专技十三级",{"$f":"H23+I23+J23","v":1},1,null,null,"历史学类、学科教学（历史）专业       ",null,1,null,"生源不限","门头沟区石门营石园北路18513267008 李老师 mtgjwzzrsk1@bjmtg.gov.cn\n","面向2018-2020年应届毕业生"]
[20,"北京市三家店铁路中学","全额事业","小学语文教师","专业技术","专技十三级",1,1,null,null,"中国语言文学类、学科教学（语文）专业、汉语国际教育专业",null,1,null,"生源不限","门头沟区三家店新建路29号 13810550404 赵老师  mtgjwzzrsk1@bjmtg.gov.cn\n       ","面向2018-2020年应届毕业生"]
[21,"北京市三家店铁路中学","全额事业","会计","专业技术","专技十三级",1,null,1,null,"会计学专业、财务管理专业",null,1,null,"北京生源","门头沟区三家店新建路29号 13810550404 赵老师  mtgjwzzrsk1@bjmtg.gov.cn\n       ","2018-2020年应届毕业生和社会人员均可报考"]
[22,"北京景山学校京西实验学校","全额事业","高中语文教师","专业技术","专技十三级",1,1,null,null,"中国语言文学类、学科教学（语文）专业、汉语国际教育专业",null,1,null,"生源不限","门头沟区城子c地块    15201376331  杜老师  mtgjwzzrsk1@bjmtg.gov.cn   ","面向2018-2020年应届毕业生"]
[23,"北京景山学校京西实验学校","全额事业","高中数学教师","专业技术","专技十三级",1,1,null,null,"数学类、学科教学（数学）专业、统计学专业、应用统计专业      ",null,1,null,"生源不限","门头沟区城子c地块    15201376331  杜老师  mtgjwzzrsk1@bjmtg.gov.cn   ","面向2018-2020年应届毕业生"]
[24,"北京景山学校京西实验学校","全额事业","初中物理教师","专业技术","专技十三级",1,null,1,null,"物理学类、学科教学（物理）专业    ",1,null,null,"北京生源","门头沟区城子c地块    15201376331  杜老师  mtgjwzzrsk1@bjmtg.gov.cn   ","面向2018-2020年应届毕业生"]
[25,"北京景山学校京西实验学校","全额事业","初中信息教师","专业技术","专技十三级",1,1,null,null,"电子信息类、计算机科学与技术类",null,1,null,"生源不限","门头沟区城子c地块    15201376331  杜老师  mtgjwzzrsk1@bjmtg.gov.cn   ","面向2018-2020年应届毕业生"]
[26,"北京景山学校京西实验学校","全额事业","小学英语教师","专业技术","专技十三级",{"$f":"H30+I30+J30","v":1},1,null,null,"英语语言文学专业、英语专业、外国语言学及应用语言学专业、英语笔译专业、学科教学（英语）专业  ",null,1,null,"生源不限","门头沟区城子c地块    15201376331  杜老师  mtgjwzzrsk1@bjmtg.gov.cn   ","面向2018-2020年应届毕业生"]
[27,"北京景山学校京西实验学校","全额事业","小学语文教师","专业技术","专技十三级",1,null,1,null,"哲学门类、法学门类、教育学门类（学前教育专业除外）、历史学门类、艺术学门类；中国语言文学类、新闻传播学类、工商管理类、公共管理类      ",1,null,null,"北京生源","门头沟区城子c地块    15201376331  杜老师  mtgjwzzrsk1@bjmtg.gov.cn   ","面向2018-2020年应届毕业生"]
[28,"北京景山学校京西实验学校","全额事业","小学科学教师","专业技术","专技十三级",{"$f":"H32+I32+J32","v":1},null,1,null,"物理学类、化学类、生物科学类、小学教育（科学）专业",1,null,null,"北京生源","门头沟区城子c地块    15201376331  杜老师  mtgjwzzrsk1@bjmtg.gov.cn   ","面向2018-2020年应届毕业生"]
[29,"北京景山学校京西实验学校","全额事业","小学书法教师","专业技术","专技十三级",{"$f":"H33+I33+J33","v":1},null,1,null,"美术学类（书法方向）",1,null,null,"北京生源","门头沟区城子c地块    15201376331  杜老师  mtgjwzzrsk1@bjmtg.gov.cn   ","面向2018-2020年应届毕业生"]
[30,"北京景山学校京西实验学校","全额事业","小学数学教师","专业技术","专技十三级",{"$f":"H34+I34+J34","v":1},1,null,null,"数学类、学科教学（数学）专业、统计学专业、应用统计专业      ",null,1,null,"生源不限","门头沟区城子c地块    15201376331  杜老师  mtgjwzzrsk1@bjmtg.gov.cn   ","面向2018-2020年应届毕业生"]
[31,"北京市大峪中学分校附属小学","全额事业","小学英语教师（定向）","专业技术","专技十三级",1,null,1,null,"小学教育（英语）专业  ",1,null,null,"北京生源","门头沟区永定镇何各庄中街5号院2号18513269189 白老师mtgjwzzrsk1@bjmtg.gov.cn  ","本岗位仅面向首都师范大学为门头沟区定向培养的2020年应届师范生"]
[32,"北京市大峪中学分校附属小学","全额事业","小学书法教师","专业技术","专技十三级",1,1,null,null,"美术学类（书法方向）",null,1,null,"生源不限","门头沟区永定镇何各庄中街5号院2号18513269189 白老师mtgjwzzrsk1@bjmtg.gov.cn  ","面向2018-2020年应届毕业生"]
[33,"北京市大峪中学分校附属小学","全额事业","小学语文教师","专业技术","专技十三级",{"$f":"H37+I37+J37","v":2},null,2,null,"哲学门类、法学门类、教育学门类（学前教育专业除外）、历史学门类、艺术学门类；中国语言文学类、新闻传播学类、工商管理类、公共管理类      ",2,null,null,"北京生源","门头沟区永定镇何各庄中街5号院2号18513269189 白老师mtgjwzzrsk1@bjmtg.gov.cn  ","面向2018-2020年应届毕业生"]
[34,"北京市大峪中学分校附属小学","全额事业","小学数学教师","专业技术","专技十三级",2,null,2,null,"经济学门类、教育学（学前教育专业除外）门类、理学门类；电子信息类、计算机类、工商管理类、公共管理类       ",2,null,null,"北京生源","门头沟区永定镇何各庄中街5号院2号18513269189 白老师mtgjwzzrsk1@bjmtg.gov.cn  ","面向2018-2020年应届毕业生"]
[35,"北京市门头沟区大峪第一小学","全额事业","小学语文教师（定向）","专业技术","专技十三级",1,null,1,null,"小学教育（中文）专业、汉语言文学专业",1,null,null,"北京生源","门头沟区永定镇上园北路9号 18513268146 贾老师 mtgjwzzrsk2@bjmtg.gov.cn","本岗位仅面向首都师范大学为门头沟区定向培养的2020年应届师范生"]
[36,"北京市门头沟区大峪第一小学","全额事业","小学语文教师","专业技术","专技十三级",{"$f":"H40+I40+J40","v":1},1,null,null,"中国语言文学类、学科教学（语文）专业、汉语国际教育专业",null,1,null,"生源不限","门头沟区永定镇上园北路9号 18513268146 贾老师 mtgjwzzrsk2@bjmtg.gov.cn","面向2018-2020年应届毕业生"]
[37,"北京市门头沟区大峪第一小学","全额事业","小学数学教师","专业技术","专技十三级",{"$f":"H41+I41+J41","v":1},1,null,null,"数学类、学科教学（数学）专业、统计学专业、应用统计专业      ",null,1,null,"生源不限","门头沟区永定镇上园北路9号 18513268146 贾老师 mtgjwzzrsk2@bjmtg.gov.cn","面向2018-2020年应届毕业生"]
[38,"北京市门头沟区大峪第一小学（附属幼儿园）","全额事业","幼儿教师","专业技术","专技十三级",3,null,null,3,"学前教育专业",3,null,null,"北京生源","门头沟区永定镇上园北路9号 18513268146 贾老师 mtgjwzzrsk2@bjmtg.gov.cn","面向2018-2020年应届毕业生"]
[39,"北京市门头沟区大峪第二小学","全额事业","小学语文教师(北京生源）","专业技术","专技十三级",1,null,1,null,"哲学门类、法学门类、教育学门类（学前教育专业除外）、历史学门类、艺术学门类；中国语言文学类、新闻传播学类、工商管理类、公共管理类      ",1,null,null,"北京生源","门头沟区新桥路18号 18513266155  杨老师 mtgjwzzrsk2@bjmtg.gov.cn","面向2018-2020年应届毕业生"]
[40,"北京市门头沟区大峪第二小学","全额事业","小学语文教师","专业技术","专技十三级",{"$f":"H44+I44+J44","v":1},1,null,null,"中国语言文学类、学科教学（语文）专业、汉语国际教育专业",null,1,null,"生源不限","门头沟区新桥路18号 18513266155  杨老师 mtgjwzzrsk2@bjmtg.gov.cn","面向2018-2020年应届毕业生"]
[41,"北京市门头沟区大峪第二小学","全额事业","小学数学教师","专业技术","专技十三级",1,null,1,null,"经济学门类、教育学（学前教育专业除外）门类、理学门类；电子信息类、计算机类、工商管理类、公共管理类       ",1,null,null,"北京生源","门头沟区新桥路18号 18513266155  杨老师 mtgjwzzrsk2@bjmtg.gov.cn","面向2018-2020年应届毕业生"]
[42,"北京市门头沟区大峪第二小学（附属幼儿园）","全额事业","幼儿教师","专业技术","专技十三级",1,null,null,1,"学前教育专业",1,null,null,"北京生源","门头沟区新桥路18号 18513266155  杨老师 mtgjwzzrsk2@bjmtg.gov.cn","面向2018-2020年应届毕业生"]
[43,"北京市门头沟区育园小学","全额事业","小学英语教师","专业技术","专技十三级",1,1,null,null,"英语语言文学专业、英语专业、外国语言学及应用语言学专业、英语笔译专业、学科教学（英语）专业  ",null,1,null,"生源不限","门头沟区新桥南大街21号  18513266167 李老师 mtgjwzzrsk2@bjmtg.gov.cn","面向2018-2020年应届毕业生"]
[44,"北京市门头沟区京师实验小学","全额事业","小学语文教师","专业技术","专技十三级",1,null,1,null,"哲学门类、法学门类、教育学门类（学前教育专业除外）、历史学门类、艺术学门类；中国语言文学类、新闻传播学类、工商管理类、公共管理类      ",1,null,null,"北京生源","门头沟区中门寺街23号18513268987  孔老师mtgjwzzrsk2@bjmtg.gov.cn","面向2018-2020年应届毕业生"]
[45,"北京市门头沟区黑山小学","全额事业","小学英语教师（定向）","专业技术","专技十三级",{"$f":"H49+I49+J49","v":1},null,1,null,"小学教育（英语）专业  ",1,null,null,"北京生源","门头沟区黑山北小街3号  13693229559 李老师 mtgjwzzrsk2@bjmtg.gov.cn","本岗位仅面向首都师范大学为门头沟区定向培养的2020年应届师范生"]
[46,"北京市门头沟区黑山小学","全额事业","小学语文教师","专业技术","专技十三级",1,1,null,null,"中国语言文学类、学科教学（语文）专业、汉语国际教育专业",null,1,null,"生源不限","门头沟区黑山北小街3号  13693229559 李老师 mtgjwzzrsk2@bjmtg.gov.cn","面向2018-2020年应届毕业生"]
[47,"北京市门头沟区东辛房小学","全额事业","小学信息教师","专业技术","专技十三级",1,null,1,null,"电子信息类、计算机类、计算机科学与技术类",1,null,null,"北京生源","门头沟区门头沟路130号  13683109401 梁老师  mtgjwzzrsk2@bjmtg.gov.cn","面向2018-2020年应届毕业生"]
[48,"北京市门头沟区东辛房小学（附属幼儿园）","全额事业","幼儿教师","专业技术","专技十三级",{"$f":"H52+I52+J52","v":1},null,null,1,"学前教育专业",1,null,null,"北京生源","门头沟区门头沟路130号  13683109401 梁老师  mtgjwzzrsk2@bjmtg.gov.cn","2018-2020年应届生和社会人员均可报考。社会人员需具有3年及以上幼儿园工作经验，具有幼儿园教师资格证。"]
[49,"中国人民大学附属小学京西分校","全额事业","小学语文教师","专业技术","专技十三级",2,2,null,null,"中国语言文学类、学科教学（语文）专业、汉语国际教育专业",null,2,null,"生源不限","门头沟区永定镇石门营石园北路1号 13720091189 石老师mtgjwzzrsk3@bjmtg.gov.cn","面向2018-2020年应届毕业生"]
[50,"中国人民大学附属小学京西分校","全额事业","小学英语教师","专业技术","专技十三级",{"$f":"H54+I54+J54","v":1},1,null,null,"英语语言文学专业、英语专业、外国语言学及应用语言学专业、英语笔译专业、学科教学（英语）专业  ",null,1,null,"生源不限","门头沟区永定镇石门营石园北路1号 13720091189 石老师mtgjwzzrsk3@bjmtg.gov.cn","面向2018-2020年应届毕业生"]
[51,"中国人民大学附属小学京西分校","全额事业","小学体育教师","专业技术","专技十三级",1,null,1,null,"体育学类、学科教学（体育）专业        ",1,null,null,"北京生源","门头沟区永定镇石门营石园北路1号 13720091189 石老师mtgjwzzrsk3@bjmtg.gov.cn","面向2018-2020年应届毕业生"]
[52,"北京市第八中学京西附属小学","全额事业","小学语文教师（定向）","专业技术","专技十三级",1,null,1,null,"小学教育（中文）专业、汉语言文学专业",1,null,null,"北京生源","门头沟区永定镇东辛称C地块  18513265653  赵老师  mtgjwzzrsk3@bjmtg.gov.cn","本岗位仅面向首都师范大学为门头沟区定向培养的2020年应届师范生"]
[53,"北京市第八中学京西附属小学","全额事业","小学数学教师（定向）","专业技术","专技十三级",2,null,2,null,"小学教育（数学）专业      ",2,null,null,"北京生源","门头沟区永定镇东辛称C地块  18513265653  赵老师  mtgjwzzrsk3@bjmtg.gov.cn","本岗位仅面向首都师范大学为门头沟区定向培养的2020年应届师范生"]
[54,"北京市第八中学京西附属小学","全额事业","小学语文教师(北京生源）","专业技术","专技十三级",{"$f":"H58+I58+J58","v":3},null,3,null,"哲学门类、法学门类、教育学门类（学前教育专业除外）、历史学门类、艺术学门类；中国语言文学类、新闻传播学类、工商管理类、公共管理类      ",3,null,null,"北京生源","门头沟区永定镇东辛称C地块  18513265653  赵老师  mtgjwzzrsk3@bjmtg.gov.cn","面向2018-2020年应届毕业生"]
[55,"北京市第八中学京西附属小学","全额事业","小学语文教师（社招）","专业技术","专技十三级",1,null,1,null,"哲学门类、法学门类、教育学门类（学前教育专业除外）、历史学门类、艺术学门类；中国语言文学类、新闻传播学类、工商管理类、公共管理类      ",null,1,null,"北京生源","门头沟区永定镇东辛称C地块  18513265653  赵老师  mtgjwzzrsk3@bjmtg.gov.cn","本岗位仅面向社会人员：具有3年及以上小学语文教学工作经验，具有小学及以上教师资格证。"]
[56,"北京市第八中学京西附属小学","全额事业","小学语文教师","专业技术","专技十三级",4,4,null,null,"中国语言文学类、学科教学（语文）专业、汉语国际教育专业",null,4,null,"生源不限","门头沟区永定镇东辛称C地块  18513265653  赵老师  mtgjwzzrsk3@bjmtg.gov.cn","面向2018-2020年应届毕业生"]
[57,"北京市第八中学京西附属小学","全额事业","小学数学教师","专业技术","专技十三级",1,null,1,null,"经济学门类、教育学（学前教育专业除外）门类、理学门类；电子信息类、计算机类、工商管理类、公共管理类       ",1,null,null,"北京生源","门头沟区永定镇东辛称C地块  18513265653  赵老师  mtgjwzzrsk3@bjmtg.gov.cn","面向2018-2020年应届毕业生"]
[58,"北京市第八中学京西附属小学","全额事业","小学英语教师","专业技术","专技十三级",1,1,null,null,"英语语言文学专业、英语专业、外国语言学及应用语言学专业、英语笔译专业、学科教学（英语）专业  ",null,1,null,"生源不限","门头沟区永定镇东辛称C地块  18513265653  赵老师  mtgjwzzrsk3@bjmtg.gov.cn","面向2018-2020年应届毕业生"]
[59,"北京市第八中学京西附属小学","全额事业","小学体育教师","专业技术","专技十三级",1,1,null,null,"体育学类 、学科教学（体育）专业，限篮球方向",null,1,null,"生源不限","门头沟区永定镇东辛称C地块  18513265653  赵老师  mtgjwzzrsk3@bjmtg.gov.cn","面向2018-2020年应届毕业生"]
[60,"北京市门头沟区城子小学","全额事业","小学语文教师","专业技术","专技十三级",{"$f":"H64+I64+J64","v":1},1,null,null,"中国语言文学类、学科教学（语文）专业、汉语国际教育专业",null,1,null,"生源不限","门头沟区城子大街10号13681596862  王老师  mtgjwzzrsk4@bjmtg.gov.cn","面向2018-2020年应届毕业生"]
[61,"北京市门头沟区城子小学","全额事业","小学数学教师","专业技术","专技十三级",1,null,1,null,"经济学门类、教育学（学前教育专业除外）门类、理学门类；电子信息类、计算机类、工商管理类、公共管理类       ",1,null,null,"北京生源","门头沟区城子大街10号13681596862  王老师  mtgjwzzrsk4@bjmtg.gov.cn","面向2018-2020年应届毕业生"]
[62,"北京第二实验小学永定分校","全额事业","小学音乐教师","专业技术","专技十三级",1,1,null,null,"音乐学专业、音乐与舞蹈学（音乐）专业、学科教学（音乐）专业、艺术硕士（音乐）专业    ",null,1,null,"生源不限","门头沟区永定镇冯村 13681116222 刘老师mtgjwzzrsk4@bjmtg.gov.cn ","面向2018-2020年应届毕业生"]
[63,"北京第二实验小学永定分校（附属幼儿园）","全额事业","幼儿教师","专业技术","专技十三级",1,null,null,1,"学前教育专业",1,null,null,"北京生源","门头沟区永定镇冯村 13681116222 刘老师mtgjwzzrsk4@bjmtg.gov.cn ","2018-2020年应届生和社会人员均可报考。社会人员需具有3年及以上幼儿园工作经验，具有幼儿园教师资格证。"]
[64,"北京市门头沟区清水中心小学（附属幼儿园）          ","全额事业","幼儿教师","专业技术","专技十三级",1,null,null,1,"学前教育专业",1,null,null,"北京生源","门头沟区清水镇上清水村  18513265664 王老师mtgjwzzrsk4@bjmtg.gov.cn","2018-2020年应届生和社会人员均可报考。社会人员需具有3年及以上幼儿园工作经验，具有幼儿园教师资格证。"]
[65,"北京市门头沟区第一幼儿园","全额事业","幼儿教师","专业技术","专技十三级",2,null,null,2,"学前教育专业",2,null,null,"北京生源","门头沟区新桥大街44号 15601180048  赵老师 mtgjwzzrsk4@bjmtg.gov.cn","面向2018-2020年应届毕业生"]
[66,"北京市门头沟区第一幼儿园","全额事业","会计","专业技术","专技十三级",1,null,1,null,"会计学专业、财务管理专业",null,1,null,"北京生源","门头沟区新桥大街44号 15601180048  赵老师 mtgjwzzrsk4@bjmtg.gov.cn","2018-2020年应届毕业生和社会人员均可报考"]
[67,"北京市门头沟区第二幼儿园","全额事业","幼儿教师（北京生源）","专业技术","专技十三级",4,null,null,4,"学前教育专业",4,null,null,"北京生源","门头沟区龙门新区二地块 18610572098 宋老师mtgjwzzrsk4@bjmtg.gov.cn","面向2018-2020年应届毕业生"]
[68,"北京市门头沟区第二幼儿园","全额事业","幼儿教师","专业技术","专技十三级",1,1,null,null,"学前教育专业",null,1,null,"生源不限","门头沟区龙门新区二地块 18610572098 宋老师mtgjwzzrsk4@bjmtg.gov.cn","面向2018-2020年应届毕业生"]
[69,"北京市门头沟区第三幼儿园","全额事业","幼儿教师","专业技术","专技十三级",2,null,null,2,"学前教育专业",2,null,null,"北京生源","门头沟区大峪二小路11号院18601956101 韩老师mtgjwzzrsk4@bjmtg.gov.cn","面向2018-2020年应届毕业生"]
[70,"北京市门头沟区第一幼儿园龙山分园","全额事业","幼儿教师","专业技术","专技十三级",5,null,null,5,"学前教育专业",5,null,null,"北京生源","门头沟区黑山棚改A1地块龙山家园一区 13241300873 杨老师 mtgjwzzrsk4@bjmtg.gov.cn","面向2018-2020年应届毕业生"]
[71,"北京市门头沟区第五幼儿园","全额事业","幼儿教师","专业技术","专技十三级",5,null,null,5,"学前教育专业",5,null,null,"北京生源","门头沟区永定镇泰安路与新城大街交叉口东侧 18513269120 杨老师 mtgjwzzrsk5@bjmtg.gov.cn\n","2018-2020年应届生和社会人员均可报考。社会人员需具有3年及以上幼儿园工作经验，具有幼儿园教师资格证。"]
[72,"北京市门头沟区第六幼儿园","全额事业","幼儿教师","专业技术","专技十三级",4,null,null,4,"学前教育专业",4,null,null,"北京生源","门头沟区石门营棚改安置房东侧 13911357747 李老师\nmtgjwzzrsk5@bjmtg.gov.cn；","2018-2020年应届生和社会人员均可报考。社会人员需具有3年及以上幼儿园工作经验，具有幼儿园教师资格证。"]
[73,"清华大学附属中学潭柘寺学校（北京市门头沟区潭柘寺中学代招）","全额事业","初中语文教师","专业技术","专技十三级",1,1,null,null,"中国语言文学类、学科教学（语文）专业、汉语国际教育专业",null,1,null,"生源不限","门头沟区潭柘寺镇 13520043961 孟老师 mtgjwzzrsk5@bjmtg.gov.cn；","面向2018-2020年应届毕业生"]
[74,"清华大学附属中学潭柘寺学校（北京市门头沟区潭柘寺中学代招）","全额事业","初中数学教师","专业技术","专技十三级",1,1,null,null,"数学类、学科教学（数学）专业、统计学专业、应用统计专业      ",null,1,null,"生源不限","门头沟区潭柘寺镇 13520043961 孟老师 mtgjwzzrsk5@bjmtg.gov.cn；","面向2018-2020年应届毕业生"]
[75,"清华大学附属中学潭柘寺学校（北京市门头沟区潭柘寺中学代招）","全额事业","初中英语教师","专业技术","专技十三级",1,1,null,null,"英语语言文学专业、英语专业、外国语言学及应用语言学专业、英语笔译专业、学科教学（英语）专业  ",null,1,null,"生源不限","门头沟区潭柘寺镇 13520043961 孟老师 mtgjwzzrsk5@bjmtg.gov.cn；","面向2018-2020年应届毕业生"]
[76,"清华大学附属中学潭柘寺学校（北京市门头沟区潭柘寺中学代招）","全额事业","校医（社招）","专业技术","专技十三级",1,null,1,null,"临床医学",null,1,null,"北京生源","门头沟区潭柘寺镇 13520043961 孟老 mtgjwzzrsk5@bjmtg.gov.cn；","本岗位仅面向社会人员：具有医院临床工作经验和5年及以上校医工作经验，具有医师执业证及医师资格证。"]
[77,"清华大学附属中学潭柘寺学校（北京市门头沟区潭柘寺中学代招）","全额事业","初中英语教师（社招）","专业技术","专技十三级",1,1,null,null,"英语类",null,1,null,"北京生源","门头沟区潭柘寺镇 13520043961 孟老师 mtgjwzzrsk5@bjmtg.gov.cn；","本岗位仅面向社会人员：具有5年及以上初中英语教学工作经验，具有英语教研组长工作经历， 具有初中及以上相应学科教师资格证，一级教师职称。"]
[78,"清华大学附属中学潭柘寺学校（北京市门头沟区潭柘寺中学代招）","全额事业","初中英语教师（社招）","专业技术","专技十三级",1,null,1,null,"英语类",null,null,1,"北京生源","门头沟区潭柘寺镇 13520043961 孟老师 mtgjwzzrsk5@bjmtg.gov.cn；","本岗位仅面向社会人员：具有5年及以上初中英语教学工作经验，具有英语教研组长工作经历， 具有初中及以上相应学科教师资格证，一级教师职称。"]
[79,"清华大学附属中学潭柘寺学校（北京市门头沟区潭柘寺中学代招）","全额事业","教育教学管理（社招）","管理","管理九级",1,null,1,null,"管理学门类",1,null,null,"北京生源","门头沟区潭柘寺镇 13520043961 孟老师 mtgjwzzrsk5@bjmtg.gov.cn；","本岗位仅面向社会人员：具有小学及以上教师资格证。"]
[80,"清华大学附属中学潭柘寺学校（北京市门头沟区潭柘寺中学代招）","全额事业","初中美术教师（社招）","专业技术","专技十三级",1,1,null,null,"美术学类",null,1,null,"北京生源","门头沟区潭柘寺镇 13520043961 孟老师 mtgjwzzrsk5@bjmtg.gov.cn；","本岗位仅面向社会人员：具有3年及以上初中美术教学工作经验，具有初中及以上相应学科教师资格证。"]
[81,"清华大学附属中学潭柘寺学校（北京市门头沟区潭柘寺中学代招）","全额事业","初中信息教师","专业技术","专技十三级",1,null,1,null,"电子信息类、计算机科学与技术类",1,null,null,"北京生源","门头沟区潭柘寺镇 13520043961 孟老师 mtgjwzzrsk5@bjmtg.gov.cn；","面向2018-2020年应届毕业生"]
[82,"清华大学附属中学潭柘寺学校（北京市门头沟区潭柘寺中学代招）","全额事业","初中信息教师（社招）","专业技术","专技十三级",1,null,1,null,"电子信息类、计算机科学与技术类",null,1,null,"北京生源","门头沟区潭柘寺镇 13520043961 孟老师 mtgjwzzrsk5@bjmtg.gov.cn；","本岗位仅面向社会人员：具有3年及以上初中信息技术教学工作经验，具有初中及以上相应学科教师资格证。"]